fUST/lending_fUST_20250117
["ID","MTS","AMOUNT","RATE_DAILY","PERIOD"]
[349229523,1737048643430,-500.0,0.00020409,2]
[349229524,1737048643441,-500.0,0.00020409,2]
[349229525,1737048643452,-500.0,0.00020409,2]
[349229526,1737048643462,-500.0,0.00020409,2]
[349229527,1737048643472,-500.0,0.00020409,2]
[349229528,1737048643482,-500.0,0.00020409,2]
[349229529,1737048643492,-500.0,0.00020409,2]
[349229530,1737048643504,-500.0,0.00020409,2]
[349229531,1737048643516,-500.0,0.00020409,2]
[349229532,1737048643525,-500.0,0.00020409,2]
[349229533,1737048643535,-500.0,0.00020409,2]
[349229534,1737048643545,-500.0,0.00020409,2]
[349229535,1737048643555,-500.0,0.00020409,2]
[349229536,1737048643564,-500.0,0.00020409,2]
[349229537,1737048643574,-500.0,0.00020409,2]
[349229538,1737048643584,-500.0,0.00020409,2]
[349229539,1737048643593,-500.0,0.00020409,2]
[349229540,1737048643603,-500.0,0.00020409,2]
[349229541,1737048643615,-500.0,0.00020409,2]
[349229542,1737048643625,-500.0,0.00020409,2]
[349229543,1737048643634,-500.0,0.00020409,2]
[349229544,1737048643644,-500.0,0.00020409,2]
[349229545,1737048643653,-500.0,0.00020409,2]
[349229546,1737048643663,-500.0,0.00020409,2]
[349229547,1737048643672,-500.0,0.00020409,2]
[349229548,1737048643682,-500.0,0.00020409,2]
[349229549,1737048643694,-500.0,0.00020409,2]
[349229550,1737048643704,-500.0,0.00020409,2]
[349229551,1737048643713,-500.0,0.00020409,2]
[349229552,1737048643722,-335.22404225,0.00020409,2]
[349229553,1737048643732,-500.0,0.00020409,2]
[349229554,1737048643741,-500.0,0.00020409,2]
[349229555,1737048643751,-500.0,0.00020409,2]
[349229556,1737048643859,-500.0,0.00020409,2]
[349229557,1737048643869,-500.0,0.00020409,2]
[349229558,1737048643879,-500.0,0.00020409,2]
[349229559,1737048643888,-500.0,0.00020409,2]
[349229560,1737048643897,-419.54203697,0.00020409,2]
[349229561,1737048643906,-500.0,0.00020409,2]
[349229562,1737048643916,-500.0,0.00020409,2]
[349229563,1737048643925,-500.0,0.00020409,2]
[349229564,1737048643935,-500.0,0.00020409,2]
[349229565,1737048643945,-500.0,0.00020409,2]
[349229566,1737048643955,-500.0,0.00020409,2]
[349229567,1737048643964,-151.0,0.00020821,2]
[349229568,1737048643974,-151.0,0.00020821,2]
[349229569,1737048643984,-151.0,0.00020862,2]
[349229570,1737048643993,-151.0,0.00020862,2]
[349229571,1737048644002,-151.0,0.00020893,2]
[349229572,1737048644012,-168.668647,0.00020893,2]
[349229573,1737048644021,-151.0,0.00021,2]
[349229574,1737048644031,-151.0,0.00021095,2]
[349229575,1737048644040,-151.0,0.00021417,2]
[349229576,1737048644050,-151.0,0.00021643,2]
[349229577,1737048644060,-151.0,0.00021917,2]
[349229578,1737048644069,-151.0,0.00022181,7]
[349229579,1737048644080,-151.0,0.00022465,7]
[349229580,1737048644089,-135024.04874526,0.00023685,61]
[349229581,1737048644103,-35936.10562305,0.00023685,61]
[349229587,1737048645938,-635.73,0.00019178,2]
[349229588,1737048645948,-51867.36649137,0.00023685,61]
[349229590,1737048650845,177.440932,0.00013973,2]
[349229592,1737049533990,177.440932,0.00013973,2]
[349229695,1737049832384,-285.0,0.00018177,2]
[349229697,1737049832394,-300.0,0.00018177,2]
[349229699,1737049832405,-2349.88949185,0.00018178,2]
[349229713,1737049832533,-22550.11050815,0.00018178,2]
[349229714,1737049832542,-230.110057,0.00018391,2]
[349229716,1737049832552,-1397.60673533,0.000189,2]
[349229718,1737049832562,-500.0,0.00019178,2]
[349229720,1737049832571,-500.0,0.00019178,2]
[349229722,1737049832581,-500.0,0.00019178,2]
[349229724,1737049832590,-500.0,0.00019178,7]
[349229726,1737049832599,-500.0,0.00019178,2]
[349229728,1737049832609,-500.0,0.00019178,2]
[349229730,1737049832618,-500.0,0.00019178,2]
[349229732,1737049832628,-513.54,0.00019178,2]
[349229734,1737049832637,-500.0,0.00019178,2]
[349229736,1737049832647,-558.08,0.00019178,2]
[349229738,1737049832656,-500.0,0.00019178,2]
[349229741,1737049832667,-598.16398903,0.00019178,2]
[349229744,1737049832676,-500.0,0.00019178,2]
[349229747,1737049832685,-500.0,0.00019178,2]
[349229750,1737049832694,-500.0,0.00019178,2]
[349229753,1737049832704,-500.0,0.00019178,2]
[349229755,1737049832714,-500.0,0.00019178,2]
[349229757,1737049832723,-500.0,0.00019178,2]
[349229759,1737049832732,-500.0,0.00019178,2]
[349229761,1737049832743,-500.0,0.00019178,2]
[349229763,1737049832752,-375.78344562,0.00019178,2]
[349229765,1737049832761,-500.0,0.00019178,2]
[349229766,1737049832771,-500.0,0.00019178,2]
[349229767,1737049832780,-500.0,0.00019178,2]
[349229769,1737049832790,-500.0,0.00019178,2]
[349229771,1737049832799,-500.0,0.00019178,2]
[349229772,1737049832808,-500.0,0.00019178,2]
[349229773,1737049832817,-500.0,0.00019178,2]
[349229774,1737049832827,-630.68,0.00019178,2]
[349229775,1737049832840,-500.0,0.00019178,2]
[349229776,1737049832849,-582.576985,0.00019178,2]
[349229777,1737049832859,-500.0,0.00019178,2]
[349229778,1737049832868,-500.0,0.00019178,2]
[349229779,1737049832877,-505.29565246,0.00019178,2]
[349229780,1737049832886,-500.0,0.00019178,2]
[349229781,1737049832896,-500.0,0.00019178,2]
[349229782,1737049832906,-500.0,0.00019178,2]
[349229783,1737049832918,-500.0,0.00019178,2]
[349229784,1737049832928,-223.38225728,0.00019178,2]
[349229785,1737049832937,-500.0,0.00019178,2]
[349229786,1737049832946,-500.0,0.00019178,2]
[349229787,1737049832955,-519.98,0.00019178,2]
[349229788,1737049832965,-500.0,0.00019178,2]
[349229789,1737049832974,-500.0,0.00019178,2]
[349229790,1737049832984,-500.0,0.00019178,2]
[349229791,1737049832993,-500.0,0.00019178,2]
[349229792,1737049833004,-500.0,0.00019178,2]
[349229793,1737049833013,-500.0,0.00019178,2]
[349229794,1737049833023,-500.0,0.00019178,2]
[349229795,1737049833033,-366.41628292,0.00019178,2]
[349229796,1737049833042,-500.0,0.00019178,2]
[349229797,1737049833053,-500.0,0.00019178,2]
[349229798,1737049833063,-500.0,0.00019178,2]
[349229799,1737049833073,-928.5,0.00019178,2]
[349229800,1737049833083,-500.0,0.00019178,2]
[349229801,1737049833093,-500.0,0.00019178,2]
[349229802,1737049833103,-506.13217198,0.00019178,2]
[349229803,1737049833113,-500.0,0.00019178,2]
[349229804,1737049833123,-500.0,0.00019178,2]
[349229805,1737049833133,-500.0,0.00019178,2]
[349229806,1737049833143,-500.0,0.00019178,2]
[349229807,1737049833152,-500.0,0.00019178,2]
[349229809,1737049833163,-500.0,0.00019178,2]
[349229811,1737049833173,-500.0,0.00019178,2]
[349229812,1737049833182,-500.0,0.00019178,2]
[349229814,1737049833192,-500.0,0.00019178,2]
[349229816,1737049833202,-500.0,0.00019178,2]
[349229818,1737049833212,-500.0,0.00019178,2]
[349229820,1737049833222,-419.65,0.00019178,2]
[349229822,1737049833232,-500.0,0.00019178,2]
[349229823,1737049833242,-500.0,0.00019178,2]
[349229825,1737049833252,-500.0,0.00019178,2]
[349229827,1737049833262,-500.0,0.00019178,2]
[349229829,1737049833272,-500.0,0.00019178,2]
[349229832,1737049833282,-500.0,0.00019178,2]
[349229833,1737049833293,-500.0,0.00019178,2]
[349229835,1737049833303,-193.76,0.00019178,2]
[349229837,1737049833313,-500.0,0.00019178,2]
[349229839,1737049833322,-500.0,0.00019178,2]
[349229841,1737049833333,-500.0,0.00019178,2]
[349229844,1737049833343,-500.0,0.00019178,2]
[349229845,1737049833353,-500.0,0.00019178,2]
[349229847,1737049833368,-671.7,0.00019178,2]
[349229850,1737049833378,-500.0,0.00019178,2]
[349229851,1737049833387,-155.9,0.00019178,2]
[349229853,1737049833397,-173.87145127,0.00019214,2]
[349229855,1737049833412,-500.0,0.00019314,3]
[349229857,1737049833423,-578.32,0.00019314,3]
[349229859,1737049833433,-500.0,0.00019314,3]
[349229861,1737049833445,-500.0,0.00019314,3]
[349229863,1737049833455,-500.0,0.00019314,3]
[349229864,1737049833465,-500.0,0.00019314,3]
[349229865,1737049833475,-500.0,0.00019314,3]
[349229866,1737049833486,-500.0,0.00019314,3]
[349229867,1737049833496,-520.53414045,0.00019314,3]
[349229868,1737049833507,-500.0,0.00019314,3]
[349229869,1737049833517,-500.0,0.00019314,3]
[349229870,1737049833527,-500.0,0.00019314,3]
[349229871,1737049833537,-500.0,0.00019314,3]
[349229872,1737049833547,-500.0,0.00019314,3]
[349229873,1737049833558,-544.36,0.00019314,3]
[349229874,1737049833568,-500.0,0.00019314,3]
[349229875,1737049833578,-628.5,0.00019314,3]
[349229876,1737049833588,-500.0,0.00019314,3]
[349229877,1737049833598,-500.0,0.00019314,3]
[349229878,1737049833608,-500.0,0.00019314,3]
[349229879,1737049833618,-500.0,0.00019314,3]
[349229880,1737049833628,-500.0,0.00019314,3]
[349229881,1737049833637,-500.0,0.00019314,3]
[349229882,1737049833648,-500.0,0.00019314,3]
[349229883,1737049833663,-500.0,0.00019314,3]
[349229884,1737049833673,-500.0,0.00019314,3]
[349229885,1737049833683,-500.0,0.00019314,3]
[349229886,1737049833693,-500.0,0.00019314,3]
[349229887,1737049833703,-500.0,0.00019314,3]
[349229888,1737049833713,-500.0,0.00019314,3]
[349229889,1737049833723,-500.0,0.00019314,3]
[349229890,1737049833733,-500.0,0.00019314,3]
[349229891,1737049833743,-500.0,0.00019314,2]
[349229892,1737049833752,-500.0,0.00019314,3]
[349229893,1737049833762,-500.0,0.00019314,3]
[349229894,1737049833773,-500.0,0.00019314,3]
[349229895,1737049833783,-2979.84,0.00019314,3]
[349229896,1737049833793,-500.0,0.00019314,3]
[349229897,1737049833803,-500.0,0.00019314,3]
[349229898,1737049833812,-500.0,0.00019314,3]
[349229899,1737049833821,-500.0,0.00019314,3]
[349229900,1737049833832,-500.0,0.00019314,3]
[349229901,1737049833845,-254.5478698,0.00019314,3]
[349229902,1737049833855,-510.68591112,0.00019315,3]
[349229903,1737049833866,-385.77,0.00019315,3]
[349229904,1737049833878,-500.0,0.00019315,3]
[349229905,1737049833887,-215.28,0.00019315,3]
[349229906,1737049833898,-500.0,0.00019315,3]
[349229907,1737049833913,-348.84,0.00019315,3]
[349229908,1737049833923,-324.5353335,0.00019315,3]
[349229909,1737049833933,-285.62038855,0.00019315,2]
[349229910,1737049833942,-500.0,0.00019315,3]
[349229911,1737049833952,-500.0,0.00019315,3]
[349229912,1737049833962,-500.0,0.00019315,3]
[349229913,1737049833972,-928.5,0.00019315,3]
[349229914,1737049833983,-500.0,0.00019315,3]
[349229915,1737049833992,-500.0,0.00019315,3]
[349229916,1737049834002,-500.0,0.00019315,3]
[349229917,1737049834011,-500.0,0.00019315,3]
[349229918,1737049834021,-500.0,0.00019315,3]
[349229919,1737049834031,-500.0,0.00019315,3]
[349229920,1737049834041,-500.0,0.00019315,3]
[349229921,1737049834052,-500.0,0.00019315,3]
[349229922,1737049834061,-500.0,0.00019315,3]
[349229923,1737049834071,-500.0,0.00019315,3]
[349229924,1737049834081,-500.0,0.00019315,3]
[349229925,1737049834091,-500.0,0.00019315,3]
[349229926,1737049834100,-500.0,0.00019315,3]
[349229927,1737049834111,-405.83756343,0.00019315,3]
[349229928,1737049834120,-531.47316644,0.00019315,2]
[349229929,1737049834129,-500.0,0.00019315,3]
[349229930,1737049834139,-500.0,0.00019315,3]
[349229931,1737049834149,-500.0,0.00019315,3]
[349229932,1737049834160,-500.0,0.00019315,3]
[349229933,1737049834170,-500.0,0.00019315,3]
[349229934,1737049834180,-500.0,0.00019315,3]
[349229935,1737049834190,-500.0,0.00019315,3]
[349229936,1737049834200,-671.7,0.00019315,3]
[349229937,1737049834210,-500.0,0.00019407,2]
[349229938,1737049834220,-182.184,0.00019418,2]
[349229939,1737049834229,-500.0,0.00019451,3]
[349229940,1737049834239,-500.0,0.00019451,3]
[349229941,1737049834250,-500.0,0.00019451,3]
[349229942,1737049834260,-156.71,0.00019451,3]
[349229943,1737049834269,-552.17,0.00019451,3]
[349229944,1737049834279,-500.0,0.00019451,3]
[349229945,1737049834290,-500.0,0.00019451,3]
[349229946,1737049834301,-500.0,0.00019451,3]
[349229947,1737049834311,-500.0,0.00019451,3]
[349229948,1737049834321,-500.0,0.00019451,3]
[349229949,1737049834330,-500.0,0.00019451,3]
[349229950,1737049834340,-338.69148438,0.00019451,3]
[349229951,1737049834350,-500.0,0.00019451,2]
[349229952,1737049834360,-500.0,0.00019451,3]
[349229953,1737049834370,-500.0,0.00019451,3]
[349229954,1737049834380,-500.0,0.00019451,3]
[349229955,1737049834389,-2979.84,0.00019451,3]
[349229956,1737049834399,-500.0,0.00019451,3]
[349229957,1737049834410,-500.0,0.00019451,3]
[349229958,1737049834419,-500.0,0.00019452,3]
[349229959,1737049834430,-500.0,0.00019452,3]
[349229960,1737049834439,-500.0,0.00019452,3]
[349229961,1737049834449,-928.5,0.00019452,3]
[349229962,1737049834459,-500.0,0.00019452,3]
[349229963,1737049834468,-500.0,0.00019452,3]
[349229964,1737049834478,-500.0,0.00019452,3]
[349229965,1737049834487,-500.0,0.00019452,3]
[349229966,1737049834497,-500.0,0.00019452,3]
[349229967,1737049834506,-500.0,0.00019452,3]
[349229968,1737049834516,-500.0,0.00019452,3]
[349229969,1737049834525,-500.0,0.00019452,3]
[349229970,1737049834535,-500.0,0.00019452,3]
[349229971,1737049834642,-336.15951793,0.00019452,3]
[349229972,1737049834653,-500.0,0.00019452,3]
[349229973,1737049834664,-500.0,0.00019452,3]
[349229974,1737049834674,-500.0,0.00019452,3]
[349229975,1737049834683,-500.0,0.00019452,3]
[349229976,1737049834692,-500.0,0.00019452,3]
[349229977,1737049834701,-500.0,0.00019452,3]
[349229978,1737049834710,-671.7,0.00019452,3]
[349229979,1737049834720,-502.89758128,0.000195,2]
[349229980,1737049834729,-500.0,0.00019588,3]
[349229981,1737049834739,-500.0,0.00019588,3]
[349229982,1737049834748,-500.0,0.00019588,3]
[349229983,1737049834757,-500.0,0.00019588,3]
[349229984,1737049834767,-500.0,0.00019588,3]
[349229985,1737049834776,-500.0,0.00019588,3]
[349229986,1737049834786,-500.0,0.00019588,3]
[349229987,1737049834796,-500.0,0.00019588,3]
[349229988,1737049834805,-500.0,0.00019588,3]
[349229989,1737049834815,-500.0,0.00019588,2]
[349229990,1737049834824,-500.0,0.00019588,3]
[349229991,1737049834836,-500.0,0.00019588,3]
[349229992,1737049834847,-500.0,0.00019588,3]
[349229993,1737049834857,-2979.84,0.00019588,3]
[349229994,1737049834867,-500.0,0.00019588,3]
[349229995,1737049834876,-412.03980874,0.00019588,3]
[349229996,1737049834887,-500.0,0.00019588,3]
[349229997,1737049834897,-500.0,0.00019589,3]
[349229998,1737049834907,-500.0,0.00019589,3]
[349229999,1737049834920,-500.0,0.00019589,3]
[349230000,1737049834929,-928.5,0.00019589,3]
[349230001,1737049834939,-500.0,0.00019589,3]
[349230002,1737049834949,-500.0,0.00019589,3]
[349230003,1737049834958,-500.0,0.00019589,3]
[349230004,1737049834967,-633.59,0.00019589,3]
[349230005,1737049834977,-500.0,0.00019589,3]
[349230006,1737049834986,-500.0,0.00019589,3]
[349230007,1737049834995,-500.0,0.00019589,3]
[349230008,1737049835005,-500.0,0.00019589,3]
[349230009,1737049835015,-500.0,0.00019589,3]
[349230010,1737049835024,-500.0,0.00019589,3]
[349230011,1737049835033,-500.0,0.00019589,3]
[349230012,1737049835043,-500.0,0.00019589,3]
[349230013,1737049835053,-500.0,0.00019589,3]
[349230014,1737049835062,-500.0,0.00019589,3]
[349230015,1737049835072,-500.0,0.00019589,3]
[349230016,1737049835081,-671.7,0.00019589,3]
[349230017,1737049835091,-173.87145127,0.00019644,2]
[349230018,1737049835101,-500.0,0.00019725,3]
[349230019,1737049835110,-500.0,0.00019725,3]
[349230020,1737049835120,-362.9,0.00019725,3]
[349230021,1737049835129,-500.0,0.00019725,3]
[349230022,1737049835139,-500.0,0.00019725,3]
[349230023,1737049835148,-500.0,0.00019725,3]
[349230024,1737049835157,-261.97,0.00019725,3]
[349230025,1737049835168,-500.0,0.00019725,3]
[349230026,1737049835177,-261.26,0.00019725,3]
[349230027,1737049835187,-500.0,0.00019725,2]
[349230028,1737049835197,-500.0,0.00019725,3]
[349230029,1737049835206,-369.29948177,0.00019725,3]
[349230030,1737049835215,-500.0,0.00019725,3]
[349230031,1737049835225,-2979.84,0.00019725,3]
[349230032,1737049835235,-500.0,0.00019725,3]
[349230033,1737049835245,-522.8,0.00019725,3]
[349230034,1737049835255,-500.0,0.00019726,3]
[349230035,1737049835265,-500.0,0.00019726,3]
[349230036,1737049835274,-500.0,0.00019726,3]
[349230037,1737049835283,-928.5,0.00019726,3]
[349230038,1737049835293,-261.28,0.00019726,3]
[349230039,1737049835303,-500.0,0.00019726,3]
[349230040,1737049835313,-616.31733802,0.00019726,3]
[349230041,1737049835322,-318.36728631,0.00019726,3]
[349230042,1737049835331,-500.0,0.00019726,3]
[349230043,1737049835340,-347.08,0.00019726,3]
[349230044,1737049835350,-500.0,0.00019726,3]
[349230045,1737049835360,-624.27909557,0.00019726,3]
[349230046,1737049835370,-500.0,0.00019726,3]
[349230047,1737049835379,-500.0,0.00019726,3]
[349230048,1737049835387,-500.0,0.00019726,3]
[349230049,1737049835397,-500.0,0.00019726,3]
[349230050,1737049835406,-671.7,0.00019726,3]
[349230051,1737049835418,-500.0,0.00019821,2]
[349230052,1737049835427,-503.88354482,0.00019821,2]
[349230053,1737049835437,-420.0,0.00019829,2]
[349230054,1737049835448,-501.39,0.00019862,3]
[349230055,1737049835457,-500.0,0.00019862,3]
[349230056,1737049835467,-500.0,0.00019862,3]
[349230057,1737049835477,-500.0,0.00019862,3]
[349230058,1737049835487,-500.0,0.00019862,3]
[349230059,1737049835497,-500.0,0.00019862,2]
[349230060,1737049835506,-465.28,0.00019862,3]
[349230061,1737049835516,-443.59,0.00019862,3]
[349230062,1737049835525,-2979.84,0.00019862,3]
[349230063,1737049835535,-643.86,0.00019863,3]
[349230064,1737049835545,-500.0,0.00019863,3]
[349230065,1737049835554,-500.0,0.00019863,3]
[349230066,1737049835565,-928.5,0.00019863,3]
[349230067,1737049835575,-500.0,0.00019863,3]
[349230068,1737049835584,-500.0,0.00019863,3]
[349230069,1737049835594,-500.0,0.00019863,3]
[349230070,1737049835603,-500.0,0.00019863,3]
[349230071,1737049835613,-500.0,0.00019863,3]
[349230072,1737049835622,-500.0,0.00019863,3]
[349230073,1737049835631,-332.75727002,0.00019863,3]
[349230074,1737049835640,-671.7,0.00019863,3]
[349230075,1737049835650,-606.68,0.00019899,3]
[349230076,1737049835660,-1371.66296085,0.000199,2]
[349230077,1737049835669,-500.0,0.00019991,2]
[349230078,1737049835679,-245.23136529,0.00019991,2]
[349230079,1737049835689,-581.87,0.00019999,3]
[349230080,1737049835698,-580.85,0.00019999,3]
[349230081,1737049835708,-500.0,0.00019999,3]
[349230082,1737049835718,-428.0,0.00019999,3]
[349230083,1737049835728,-500.0,0.00019999,2]
[349230084,1737049835738,-2979.84,0.00019999,3]
[349230085,1737049835748,-435.99,0.0002,2]
[349230086,1737049835758,-305.0,0.0002,8]
[349230087,1737049835768,-291.45,0.0002,3]
[349230088,1737049835778,-500.0,0.0002,3]
[349230089,1737049835788,-928.5,0.0002,3]
[349230090,1737049835798,-500.0,0.0002,3]
[349230091,1737049835808,-500.0,0.0002,3]
[349230092,1737049835817,-500.0,0.0002,3]
[349230093,1737049835828,-500.0,0.0002,3]
[349230094,1737049835841,-500.0,0.0002,3]
[349230095,1737049835851,-189.08364928,0.0002,3]
[349230096,1737049835861,-671.7,0.0002,3]
[349230097,1737049835871,-606.68,0.00020036,3]
[349230098,1737049835881,-1371.66296057,0.00020038,2]
[349230099,1737049835894,-173.87145127,0.00020073,2]
[349230100,1737049835904,-500.0,0.00020136,3]
[349230101,1737049835916,-500.0,0.00020136,3]
[349230102,1737049835926,-928.5,0.00020136,3]
[349230103,1737049835936,-500.0,0.00020136,2]
[349230104,1737049835946,-500.0,0.00020136,3]
[349230105,1737049835956,-2979.84,0.00020136,3]
[349230106,1737049835965,-500.0,0.00020136,3]
[349230107,1737049835975,-500.0,0.00020136,3]
[349230108,1737049835984,-500.0,0.00020136,3]
[349230109,1737049835994,-500.0,0.00020136,3]
[349230110,1737049836004,-671.7,0.00020136,3]
[349230111,1737049836013,-606.68,0.00020173,3]
[349230112,1737049836022,-1371.66296057,0.00020176,2]
[349230113,1737049836032,-500.0,0.00020273,3]
[349230114,1737049836041,-500.0,0.00020273,3]
[349230115,1737049836051,-928.5,0.00020273,3]
[349230116,1737049836061,-500.0,0.00020273,2]
[349230117,1737049836071,-500.0,0.00020273,3]
[349230118,1737049836081,-2979.84,0.00020273,3]
[349230119,1737049836091,-500.0,0.00020273,3]
[349230120,1737049836100,-500.0,0.00020273,3]
[349230121,1737049836110,-500.0,0.00020273,3]
[349230122,1737049836119,-291.88562172,0.00020273,3]
[349230123,1737049836129,-671.7,0.00020273,3]
[349230124,1737049836139,-606.68,0.0002031,3]
[349230125,1737049836149,-540.45909976,0.00020314,2]
[349230126,1737049836224,-831.20386081,0.00020314,2]
[349230127,1737049836234,-500.99679196,0.00020357,2]
[349230128,1737049836244,-500.0,0.00020357,2]
[349230129,1737049836253,-1000.0,0.00020369,2]
[349230130,1737049836263,-500.0,0.0002041,3]
[349230131,1737049836273,-500.0,0.0002041,3]
[349230132,1737049836283,-928.5,0.0002041,3]
[349230133,1737049836292,-500.0,0.0002041,2]
[349230134,1737049836303,-500.0,0.0002041,3]
[349230135,1737049836312,-2979.84,0.0002041,3]
[349230136,1737049836321,-500.0,0.0002041,3]
[349230137,1737049836332,-500.0,0.0002041,3]
[349230138,1737049836341,-500.0,0.0002041,3]
[349230139,1737049836351,-671.7,0.0002041,3]
[349230140,1737049836361,-606.68,0.00020447,3]
[349230141,1737049836371,-1371.66296057,0.00020452,2]
[349230142,1737049836380,-226.65588986,0.00020539,2]
[349230143,1737049836391,-500.0,0.00020547,3]
[349230144,1737049836400,-500.0,0.00020547,3]
[349230145,1737049836410,-928.5,0.00020547,3]
[349230146,1737049836420,-500.0,0.00020547,2]
[349230147,1737049836431,-500.0,0.00020547,3]
[349230148,1737049836440,-2979.84,0.00020547,3]
[349230149,1737049836449,-500.0,0.00020547,3]
[349230150,1737049836458,-500.0,0.00020547,3]
[349230151,1737049836468,-500.0,0.00020547,3]
[349230152,1737049836478,-671.7,0.00020547,3]
[349230153,1737049836488,-606.68,0.00020584,3]
[349230154,1737049836498,-1371.66296057,0.0002059,2]
[349230155,1737049836507,-500.0,0.00020684,3]
[349230156,1737049836518,-500.0,0.00020684,3]
[349230157,1737049836528,-928.5,0.00020684,3]
[349230158,1737049836537,-500.0,0.00020684,2]
[349230159,1737049836547,-500.0,0.00020684,3]
[349230160,1737049836557,-2979.84,0.00020684,3]
[349230161,1737049836566,-427.8508455,0.00020684,3]
[349230162,1737049836576,-216.71470793,0.00020684,3]
[349230163,1737049836585,-500.0,0.00020684,3]
[349230164,1737049836595,-671.7,0.00020684,3]
[349230165,1737049836605,-606.68,0.00020721,3]
[349230166,1737049836614,-1371.66296057,0.00020728,2]
[349230167,1737049836624,-500.0,0.00020821,3]
[349230168,1737049836633,-500.0,0.00020821,3]
[349230169,1737049836643,-928.5,0.00020821,3]
[349230170,1737049836652,-500.0,0.00020821,2]
[349230171,1737049836663,-201.70075537,0.00020821,3]
[349230172,1737049836672,-2979.84,0.00020821,3]
[349230173,1737049836682,-500.0,0.00020821,3]
[349230174,1737049836691,-671.7,0.00020821,3]
[349230175,1737049836701,-606.68,0.00020858,3]
[349230176,1737049836711,-1371.66296057,0.00020866,2]
[349230177,1737049836720,-500.0,0.00020958,3]
[349230178,1737049836730,-500.0,0.00020958,3]
[349230179,1737049836739,-928.5,0.00020958,3]
[349230180,1737049836749,-500.0,0.00020958,2]
[349230181,1737049836758,-2979.84,0.00020958,3]
[349230182,1737049836768,-500.0,0.00020958,3]
[349230183,1737049836777,-671.7,0.00020958,3]
[349230184,1737049836787,-606.68,0.00020995,3]
[349230185,1737049836797,-1371.66296057,0.00021003,2]
[349230186,1737049836806,-500.0,0.00021095,3]
[349230187,1737049836816,-500.0,0.00021095,3]
[349230188,1737049836826,-928.5,0.00021095,3]
[349230189,1737049836837,-230.10607459,0.00021095,2]
[349230190,1737049836848,-2979.84,0.00021095,3]
[349230191,1737049836858,-500.0,0.00021095,3]
[349230192,1737049836868,-671.7,0.00021095,3]
[349230193,1737049836878,-606.68,0.00021132,3]
[349230194,1737049836888,-1371.66296057,0.00021141,2]
[349230195,1737049836898,-500.0,0.00021231,2]
[349230196,1737049836908,-500.0,0.00021231,2]
[349230197,1737049836919,-500.0,0.00021231,2]
[349230198,1737049836929,-500.0,0.00021231,2]
[349230199,1737049836938,-500.0,0.00021231,2]
[349230200,1737049836947,-500.0,0.00021231,2]
[349230201,1737049836957,-500.0,0.00021231,2]
[349230202,1737049836966,-500.0,0.00021231,2]
[349230203,1737049836976,-500.0,0.00021231,2]